Cogmind - Beta 16.1 @@@ ROGUE MODE // 2026.04.04 @ 13:04:09 Player: the Result: Destroyed by XB-YJ0(R) with Subdweller Machine Gun Performance ------------- Evolutions (0) 0 Regions Visited (1) 200 Robots Destroyed (28) 140 Value Destroyed (563) 563 Prototype IDs (0) 0 Alien Tech Used (0) 0 Bonus (0) 0 TOTAL SCORE: 903 Bonus ------- None Cogmind --------- Core Integrity 0/250 Matter 280/300 Energy 160/160 System Corruption 0% Temperature Cool (0) Movement Treading (160) Location -10/Materials Parts ------- > --- POWER (1) -------- Light Nuclear Core > --- PROPULSION (2) --- Light Treads Light Treads > --- UTILITY (2) ------ Medium Storage Unit Subdweller Optics > --- WEAPON (2) ------- Light Assault Rifle Dirty Datajack > --- INVENTORY (10) --- Ion Engine Light Treads Light Treads Light Treads Light Treads Wheel Improved Terrain Scanner Hacking Suite Mining Laser Peak State ------------ > --- POWER ------------ Light Nuclear Core > --- PROPULSION ------- Light Treads Light Treads > --- UTILITY ---------- Medium Storage Unit Subdweller Optics > --- WEAPON ----------- Light Assault Rifle Dirty Datajack > --- INVENTORY -------- Ion Engine Light Treads Light Treads Light Treads Light Treads Wheel Improved Terrain Scanner Hacking Suite Mining Laser [Rating: 16] Favorites ----------- Power Ion Engine Engine Ion Engine Power Core Light Nuclear Core Propulsion Light Treads Treads Light Treads Wheel Wheel Utility Seismic Detector Device Seismic Detector Storage Medium Storage Unit Weapon Light Assault Rifle Ballistic Gun Light Assault Rifle Special Weapon Mining Laser Special Melee Weapon Dirty Datajack Build | -11 -10 ------- Run | Yrd Mat Slots Evolved . | . . Power . | . . Propulsion . | . . Utility . | . . Weapon . | . . Parts Attached 17 | 7 10 Power 2 | 1 1 Engine 1 | 1 . Core 1 | . 1 Reactor . | . . Propulsion 5 | 2 3 Treads 4 | 2 2 Leg . | . . Wheel 1 | . 1 Hover . | . . Flight . | . . Utility 6 | 2 4 Device 4 | 1 3 Storage 2 | 1 1 Processor . | . . Hackware . | . . Protection . | . . Artifact . | . . Weapon 4 | 2 2 Energy Gun . | . . Energy Cannon . | . . Ballistic Gun 2 | 2 . Ballistic Cannon . | . . Launcher . | . . Special Weapon 1 | . 1 Impact Weapon . | . . Slashing Weapon . | . . Piercing Weapon . | . . Special Melee Weapon 1 | . 1 Unidentified Prototypes . | . . Parts Lost 6 | . 6 Power . | . . Propulsion 2 | . 2 Utility 3 | . 3 Weapon 1 | . 1 Highest Loss Streak 3 | . 3 To Critical Strikes . | . . Average Backups 8 | 2 8 Power 1 | . 1 Propulsion 4 | . 4 Utility 1 | . 1 Weapon . | . 1 Tool/Special . | . . Unused Backups 13 | 3 10 Power 2 | . 2 Propulsion 6 | 1 5 Utility 5 | 2 3 Weapon . | . . Tool/Special . | . . Average Slot Usage (%) 97 | . 97 Engine 7 | . 7 Core 6 | . 6 Treads 26 | . 26 Device 12 | . 12 Storage 14 | . 14 Ballistic Gun 25 | . 25 Peak Build Rating 16 | 7 16 Average Rating 8 | 5 8 On Entrance 3 | . 7 Avg Prop Armor Cover (%) 12 | . 12 Naked Turns . | . . Heaviest Build 19 | 14 19 Greatest Support 40 | 40 40 Greatest Overweight (x) 1 | . 1 Average Overweight (x) . | . . Largest Inventory Capacity 10 | 8 10 Average Capacity 9 | 7 9 Most Carried 10 | 7 10 Average Carried 8 | 2 8 Final Capacity 10 | 8 10 Final Carried 9 | 6 9 Class Distribution -------------------- 96% | Mutant 3% | Scavenger-Mutant Dominant Class ---------------- Mutant | -10/Materials Resources | -11 -10 ----------- Run | Yrd Mat Matter Collected 798 | 306 492 Remotely . | . . Salvage Created 1009 | 149 860 Parts 70 | 19 51 Haulers Intercepted 1 | . 1 Recyclers Shooed 2 | . 2 Parts Field Recycled . | . . Retrieved Matter . | . . Parts Self-Destructed . | . . Prevented . | . . Parts Restored . | . . Kills | -11 -10 ------- Run | Yrd Mat Combat Hostiles Destroyed 14 | . 14 Guns 14 | . 14 Classes Destroyed 10 | 2 8 Worker 1 | . 1 Builder 1 | . 1 Tunneler 4 | 4 . Hauler 1 | . 1 Recycler 4 | 1 3 Operator 1 | . 1 Watcher 2 | . 2 Swarmer 3 | . 3 Grunt 9 | . 9 Subdweller 2 | . 2 Best Kill Streak 5 | 4 5 Combat Bots Only 3 | . 3 Max Kills in Single Turn 1 | 1 1 Gunslinging . | . . Exploded . | . . Melee . | . . Uniques/NPCs Destroyed . | . . Combat | -11 -10 -------- Run | Yrd Mat Hostile Shots Fired 96 | . 96 Missed 28 | . 28 Hits 68 | . 68 Projectile 68 | . 68 Critical Strikes 1 | . 1 Damage Taken 1020 | . 1020 Core 254 | . 254 Absorbed by Shields . | . . Core Remaining (%) 100 | 100 . Volleys Fired 133 | 9 124 Largest 2 | 2 2 Hottest 100 | 40 100 Shots Fired 242 | 18 224 Gun 238 | 18 220 Cannon . | . . Launcher . | . . Special 4 | . 4 Kinetic 238 | 18 220 Thermal 4 | . 4 Explosive . | . . Electromagnetic . | . . Robot Hit Streak 15 | 5 15 Robot Miss Streak 4 | 2 4 Penetration Max . | . . Secondary Targets . | . . Shots Hit Robots 154 | 9 145 Core Hits 55 | 6 49 Critical Kills 1 | . 1 Critical Parts Destroyed 3 | . 3 Critical Strikes 4 | . 4 Destroy 4 | . 4 Melee Attacks . | . . Impact . | . . Slashing . | . . Piercing . | . . Sneak Attacks . | . . Combat Hostiles . | . . Follow-up Attacks . | . . Damage Inflicted 1573 | 100 1473 Guns 1573 | 100 1473 Cannons . | . . Explosions . | . . Melee . | . . Ramming . | . . Kinetic 1573 | 100 1473 Thermal . | . . Explosive . | . . Electromagnetic . | . . Impact . | . . Slashing . | . . Piercing . | . . Highest Corruption . | . . Average Corruption . | . . Corruption Purged . | . . Corruption Blocked . | . . Overload Shots . | . . Overflow Damage . | . . Projectiles . | . . Explosions . | . . Melee . | . . Knockbacks . | . . Impact . | . . Kinetic . | . . Secondary . | . . Self-Inflicted Damage . | . . Shots . | . . Rammed 1 | . 1 Targets Rammed 1 | . 1 Kicked . | . . Crushed . | . . Highest Temperature 84 | . 84 Average Temperature 12 | . 12 Received Heat Transfer 324 | . 324 Siege Activations . | . . Martial Activations . | . . Shielding Activations . | . . Robots Disrupted . | . . Combat Hostiles . | . . Robots Corrupted . | . . Combat Hostiles . | . . Parts Fried . | . . Impact Corruptions . | . . Robots Melted . | . . Combat Hostiles . | . . Parts Melted . | . . Heat Transferred . | . . Parts Sabotaged . | . . Parts Stolen . | . . Parts Stripped . | . . Power Chain Reactions . | . . Alert | -11 -10 ------- Run | Yrd Mat Maximum Alert Level . | . . Low Security (%) 100 | 100 100 Level 1 . | . . Level 2 . | . . Level 3 . | . . Level 4 . | . . Level 5 . | . . High Security . | . . Max Security . | . . Peak Influence 83 | 20 83 Initial . | . . Average 22 | 3 24 Influence Increases 455 | 25 430 Destroy 0b10 Robot/C 240 | . 240 Destroy 0b10 Robot/NC 70 | 25 45 Destroy Leader 76 | . 76 Successful Hack 35 | . 35 Destroy Structure 4 | . 4 Lose Combat Pursuer 30 | . 30 Influence Decreases 455 | 25 430 Time Decay 400 | 25 375 Lost Part 55 | . 55 Squads Dispatched 3 | . 3 Investigation 1 | . 1 Extermination . | . . Reinforcement 2 | . 2 Assault . | . . Garrison . | . . Intercept . | . . Searches Triggered . | . . Construction Impeded . | . . Haulers Reinforced . | . . Active Scanning Responses . | . . Cargo Convoy Interrupts . | . . Stealth | -11 -10 --------- Run | Yrd Mat Distress Signals 1 | . 1 Communications Jammed . | . . Distress Signals . | . . Times Spotted 29 | . 29 Peak Tracking Total 3 | . 3 Tactical Retreats 3 | . 3 Traps | -11 -10 ------- Run | Yrd Mat Traps Triggered 1 | . 1 Indirectly . | . . Trap Hack Attempts . | . . Triggered . | . . Disarmed . | . . Reprogrammed . | . . Reused . | . . Traps Extracted . | . . Installed . | . . Triggered . | . . Machines | -11 -10 ---------- Run | Yrd Mat Machines Disabled . | . . Max in Single Turn . | . . Machines Repaired . | . . Machines Dismantled . | . . Machines Sabotaged . | . . Overloaded Fab Kills . | . . Hacking | -11 -10 --------- Run | Yrd Mat Machines Accessed 3 | . 3 Terminals 3 | . 3 Fabricators . | . . Repair Stations . | . . Recycling Units . | . . Scanalyzers . | . . Garrison Access . | . . Total Hacks 10 | . 10 Successful 8 | . 8 Failed 2 | . 2 Catastrophic . | . . Database Lockouts . | . . Manual 4 | . 4 Terminals 10 | . 10 Fabricators . | . . Repair Stations . | . . Recycling Units . | . . Scanalyzers . | . . Garrison Access . | . . Terminal Hacks 6 | . 6 Robot Analysis 2 | . 2 Locate Traps 1 | . 1 Hauler Manifests 1 | . 1 Zone Layout 2 | . 2 Fabricator Hacks . | . . Repair Station Hacks . | . . Recycling Unit Hacks . | . . Scanalyzer . | . . Garrison Access Hacks . | . . Unauthorized Hacks 2 | . 2 Terminals 2 | . 2 Botnet 1 | . 1 Operators 1 | . 1 Fabricators . | . . Repair Stations . | . . Recycling Units . | . . Scanalyzers . | . . Garrison Access . | . . Data Cores Recovered . | . . Used . | . . Hacking Detections 1 | . 1 Full Trace Events . | . . Feedback Events . | . . Feedback Blocked . | . . Robot Schematics Acquired . | . . Robots Built . | . . Authchips . | . . Time . | . . Total Robot Build Rating . | . . Part Schematics Acquired . | . . Parts Built . | . . Authchips . | . . Time . | . . Total Part Build Rating . | . . Part Studies Acquired . | . . Parts Repaired . | . . Time . | . . Parts Recycled . | . . Recycled Matter . | . . Retrieved Matter . | . . Retrieved Components . | . . Parts Scanalyzed . | . . Part Schematics Acquired . | . . Parts Damaged . | . . Bothacking | -11 -10 ------------ Run | Yrd Mat Used RIF Installer . | . . Robots Hacked . | . . Non-combat . | . . Combat . | . . Robot Hacks Applied . | . . Relay Couplers Released . | . . Fabnet Peak Effective % . | . . Robots Rewired . | . . Allies Hacked . | . . Hacks Repelled . | . . Allies | -11 -10 -------- Run | Yrd Mat Total Allies . | . . Largest Group . | . . Highest-Rated Group . | . . Highest-Rated Ally . | . . Total Orders . | . . Ally Attacks . | . . Total Damage . | . . Kills . | . . Allies Corrupted . | . . Allies Melted . | . . Intel | -11 -10 ------- Run | Yrd Mat Active Infowar (turns) 1076 | 54 1022 Optics 46 | . 46 Seismic 1030 | 54 976 Robot Analysis Total 2 | . 2 Derelict Logs Recovered . | . . Drone Launches . | . . Drone Recoveries . | . . Exploration | -11 -10 ------------- Run | Yrd Mat Turns Passed 1270 | 160 1110 Spaces Moved 536 | 75 461 Core 5 | 5 . Treads 476 | 70 406 Legs . | . . Wheels 55 | . 55 Hover . | . . Flight . | . . Fastest Speed 50 | 50 95 Average Speed 152 | 152 152 Slowest Speed 160 | 160 160 Overloaded Moves . | . . Propulsion Burnouts . | . . Robots Hopped . | . . Potential Cave-ins . | . . Cave-ins Triggered . | . . Exploration Rate (%) 37 | 3 72 Regions Visited 1 Branch Regions . Pre-discovered Areas . | . . Known Exits Taken . | . . Unknown Exits Taken 1 | 1 . Scrap Searched . | . . Spaces Dug 3 | . 3 Terrain Destroyed 4 | . 4 Melee . | . . Projectile 4 | . 4 AOE . | . . Terrain Rammed . | . . Walls Destroyed . | . . Machines Disabled . | . . Actions | -11 -10 --------- Run | Yrd Mat Total 763 | 102 661 Wait 47 | . 47 Move 535 | 74 461 Hop . | . . Pick Up 19 | 9 10 Fast Attach 10 | 7 3 Attach 4 | . 4 Detach 1 | . 1 Swap 5 | . 5 Drop 8 | 3 5 Fire 133 | 9 124 Melee . | . . Ram 1 | . 1 Kick . | . . Crush . | . . Escape Stasis . | . . Rewire . | . . Trap . | . . Miscellaneous . | . . Route ------- -11/Scrapyard -10/Materials (discovered 4 exits: [*Mat x2] / [*Min x2]) History --------- Turn | Location | Event 5 | -11/Scrapyard | Discovered new exit (range 14) 161 | -11/Scrapyard | Entered Materials 308 | -10/Materials | Build established: Mutant 585 | -10/Materials | Discovered new exit (range 4) 615 | -10/Materials | Discovered new exit (range 14) 692 | -10/Materials | Discovered new exit (range 14) 1050 | -10/Materials | Discovered new exit (range 7) 1061 | -10/Materials | Derelicts attacked the area 1116 | -10/Materials | Core integrity fell below 50% 1169 | -10/Materials | Core integrity fell below 20% 1222 | -10/Materials | Lost 3 parts (1n1u1w) 1271 | -10/Materials | Destroyed by XB-YJ0(R) with Subdweller Machine Gun Last Messages --------------- 01202_ U1-3Q0(R) overheating. 01204_ U1-3Q0(R) heat damages Broken Sub. Beam Cannon, Broken Sub. Optics, Sub. Power Source. 01204_ U1-3Q0(R) overheating. 01205_ K-01 Serf collects debris. 01205_ U1-3Q0(R) overheating. 01207_ U1-3Q0(R) heat damages Scrap Shield. 01207_ Destroyed Broken Sub. Beam Cannon. 01207_ U1-3Q0(R) overheating. 01208_ U1-3Q0(R) heat short circuits Sub. Monowheel. 01208_ U-05 Engineer builds a Wall. 01208_ U1-3Q0(R) overheating. 01209_ U1-3Q0(R) heat damages Scrap Shield. 01209_ U1-3Q0(R) overheating. 01211_ U1-3Q0(R) heat damages Sub. Power Source. 01211_ U1-3Q0(R) destroyed. 01217_ Acquired 24 matter. 01220_ Acquired Dirty Datajack. 01225_ Acquired Sub. Optics. 01248_ U-05 Engineer builds a Wall. Map ----- +----------------------------------------------------+ | ?????????# | ###### #! #?? | | ######## # ########## | | + # # # | | #+######### # # """# | | #???# &*# # """# | | " #???# % %# == # """# | | " ##### =+ = %!=#= # | | " # # # | +% """# | | # # # #* """# | | # # ###### # """# | | "Y" # # #????# # # | | """ # # #????# ########## | | ? # #######????# #????????? | | ##?#+## #??????????# #####????? | | ### ###+###?????????# | #????? | | * ########### =%!< #????? | | R = #????? | | !% ########### | | ####### """" ! #?# !# | | #?????# """" ### # | | "#?????# """" # """ # | | ######## ! + """ # | | """"" # ! # """ # | | """"" ###%%"""" """" # # | | """"" #?#= """" """"% # """ # | | #?# """" """" @# """ # | | #?#! # """ # | | != #?# # # | | ===[ #?# """" """" # # | | ##/#####?# """% """"*| ######### | | %#????# ""%" """"%= ######### | | [#????# !!= ## # | | #????# ## """ # | | # #????" ## """ # | | # ###### %= ## """ # | | # =% * % # # | | # /= + """ # | | # #############+## # """ # | | # #????# # # """ # | | # #????# # # # | | # #????# """ """ # !!! ######## | | # #????# """ """ # !! #??????? | | # #????# """ """ # !! #??????? | | # #????? # #####??? | | #####????? # # #??? | | ?????????? # "" # #??? | | ?????????####?###### "T #???? | | ???????????????????# "" # ##???? | | ???????????????????# =###????? | | ???????????????????# #??????? | +----------------------------------------------------+ Best States ------------- Heat Dissipation 25 Energy Generation 14 Energy Capacity 250 Matter Stores 300 Matter Capacity 300 Sight Range 21 Terrain Scan Density 10 Evasion (%) 41 Recoil Reduction 2 Item Schematics ----------------- None Robot Schematics ------------------ None Fabricated ------------ Nothing Repaired ---------- Nothing Studied --------- None Alien Tech Used ----------------- None Achievements -------------- None Challenges ------------ None Game ------ Seed SuperquantumAlertSteel Manual? 0 Play Time 00:13:04 Cumulative 689.9 hours Start 2026.04.04 @ 12:57:07 End 2026.04.04 @ 13:04:09 Sessions 1 Manual Loads 0 Difficulty Rogue Special Mode None Game No. 377 Rogue 377 Adventurer 0 Explorer 0 Win Type - Total 30 Types 15/1/6/2/1/1/1/2/1/0 Lore% 93 Gallery% 87 Achievement% 78 Wizard Run 0 Options --------- Layout 0 ASCII 0 Keyboard 0 Movement Mouse Keybinds 0 Fullscreen 2 Font 24/Smallcaps Map View 76x50 Zoom Use 0% Tactical HUD 1 Map Filters NONE Filters NONE Steam 1 RUN: d897ac14-ba70-4f66-8641-214f743d353d